bitfinex/quotes_ETHUSD_20260119
["timestamp","ask_amount","ask_price","bid_price","bid_amount"]
[1768863029472,0.54968218,3198.9,3198.6,0.002]
[1768863029672,0.54968218,3198.9,3198.7,0.512]
[1768863030044,0.00080104,3199.0,3198.7,1.444765]
[1768863030468,0.55048322,3199.0,3198.7,0.512]
[1768863031977,0.00080104,3199.0,3198.8,0.932765]
[1768863033445,0.00080104,3199.3,3198.8,0.932765]
[1768863033645,0.00080104,3199.3,3198.6,0.002]
[1768863033646,0.00080104,3199.3,3199.0,0.932765]
[1768863034976,0.00080104,3199.3,3199.1,1.444765]
[1768863035375,0.00080104,3199.3,3199.2,0.932765]
[1768863035553,0.00180096,3199.6,3199.2,0.932765]
[1768863035750,0.55228418,3199.6,3198.9,0.93356612]
[1768863035955,0.55048322,3199.5,3199.0,0.512]
[1768863037788,0.03848322,3199.3,3199.0,0.512]
[1768863042074,3.12558604,3199.4,3199.0,0.512]
[1768863043358,0.03848322,3199.4,3198.9,0.9737006]
[1768863043571,3.12548835,3199.5,3199.1,0.97289948]
[1768863043773,3.78753421,3199.5,3199.1,0.97289948]
[1768863045295,3.78753421,3199.5,3199.2,1.48489948]
[1768863045479,3.82601743,3199.5,3198.9,0.9737006]
[1768863045689,3.78753421,3199.5,3199.1,0.97289948]
[1768863045991,3.78753421,3199.5,3199.0,1.48489948]
[1768863045992,0.70052908,3199.5,3199.0,1.48489948]
[1768863046159,3.16572508,3199.6,3199.1,0.97289948]
[1768863046361,0.00180096,3199.6,3199.2,1.48489948]
[1768863046764,3.43993833,3199.6,3198.9,0.00080112]
[1768863047100,6.25264222,3199.6,3199.0,0.512]
[1768863047994,0.00180096,3199.6,3199.0,0.512]
[1768863048966,0.03848322,3199.5,3199.0,0.512]
[1768863049377,0.03848322,3199.5,3199.0,1.48489948]
[1768863049671,0.00180096,3199.6,3199.1,0.97289948]
[1768863050081,0.00180096,3199.6,3199.3,0.97289948]
[1768863051873,0.0008008,3199.9,3199.3,0.97289948]
[1768863054384,0.0008008,3199.9,3199.2,3.63855795]
[1768863054385,0.0008008,3199.9,3199.4,0.96355386]
[1768863062109,0.0008008,3199.9,3199.6,0.96355386]
[1768863064293,0.0008008,3199.9,3199.8,0.96355386]
[1768863064490,0.0008008,3199.9,3199.8,1.47555386]
[1768863064886,0.00080112,3200.3,3199.9,0.96355386]
[1768863065087,3.12550817,3200.3,3199.9,0.96355386]
[1768863065305,6.25021522,3200.3,3199.9,0.96355386]
[1768863067489,6.25021522,3200.3,3199.8,0.512]
[1768863067798,0.94066413,3200.2,3199.5,0.00080088]
[1768863070818,0.49263884,3200.0,3199.5,0.00080088]
[1768863073295,3.61773649,3199.9,3199.5,0.00080088]
[1768863073495,0.49263884,3199.8,3199.4,0.002]
[1768863073696,0.49263884,3199.8,3199.2,0.00080104]
[1768863073919,0.48983796,3199.6,3199.2,0.00080104]
[1768863075619,3.61532631,3199.5,3199.2,0.00080104]
[1768863078732,0.48983796,3199.4,3199.0,0.002]
[1768863078921,0.48903692,3199.3,3199.1,0.002]
[1768863079116,1.16329849,3199.4,3199.1,0.002]
[1768863079323,0.48903692,3199.3,3198.5,0.96355386]
[1768863079500,0.48983804,3199.3,3198.5,0.96355386]
[1768863079911,0.48823579,3199.1,3198.5,0.96355386]
[1768863080114,0.48823579,3199.1,3198.6,0.96635498]
[1768863081940,3.12597686,3199.0,3198.6,0.96635498]
[1768863083253,3.61415711,3199.1,3198.6,0.96635498]
[1768863083819,3.12580163,3199.2,3198.6,0.96635498]
[1768863089275,3.61472597,3199.3,3198.6,0.96635498]
[1768863089276,3.61476834,3199.3,3198.6,0.96635498]
[1768863089435,0.00080112,3199.3,3198.6,0.96635498]
[1768863090678,0.00080112,3199.3,3198.9,0.002]
[1768863091000,0.00080112,3199.3,3198.9,0.9400351]
[1768863091342,0.001,3199.0,3198.9,0.9400351]
[1768863100153,0.001,3199.0,3198.9,0.002]
[1768863101585,0.94510648,3199.6,3199.0,0.9672499]
[1768863102688,4.06879379,3199.5,3199.0,0.9672499]
[1768863106402,3.12548835,3199.5,3199.0,0.9672499]
[1768863106782,3.12719171,3199.6,3199.0,0.9672499]
[1768863107412,6.25259208,3199.6,3199.0,0.9672499]
[1768863107787,6.97218183,3199.6,3199.0,0.9672499]
[1768863108109,7.91548727,3199.6,3199.0,0.9672499]
[1768863109478,0.94330544,3199.5,3199.0,0.9672499]
[1768863112814,0.94330544,3199.3,3198.9,0.0028012]
[1768863112987,0.94330544,3199.3,3199.0,0.512]
[1768863113929,0.92301924,3199.4,3199.0,1.49575547]
[1768863114101,0.92482028,3199.6,3199.1,0.98375547]
[1768863114305,0.00180104,3199.6,3199.1,0.98375547]
[1768863114499,0.00180104,3199.6,3199.3,0.002]
[1768863114909,0.92482028,3199.6,3199.3,0.002]
[1768863117122,0.00180104,3199.6,3199.4,0.98375547]
[1768863121607,0.92482028,3199.6,3199.3,0.002]
[1768863124855,0.92301924,3199.5,3199.3,0.002]
[1768863129042,0.00180104,3199.6,3199.3,0.002]
[1768863129249,0.92482028,3199.6,3199.3,0.002]
[1768863130645,0.92301924,3199.5,3199.3,0.002]
[1768863133539,0.00180104,3199.6,3199.3,0.98575547]
[1768863133929,0.00180104,3199.6,3199.3,0.002]
[1768863134134,0.92482028,3199.6,3199.3,0.002]
[1768863137156,0.92482028,3199.6,3199.3,0.98575547]
[1768863137157,0.00180104,3199.6,3199.3,0.98575547]
[1768863137324,0.92482028,3199.6,3199.3,0.002]
[1768863139654,0.00180104,3199.6,3199.3,0.002]
[1768863140158,0.92482028,3199.6,3199.3,0.002]
[1768863143982,0.00180104,3199.6,3199.3,0.93393026]
[1768863144473,0.00180104,3199.6,3199.3,0.002]
[1768863144681,1.0014878,3199.6,3199.3,0.002]
[1768863146272,0.00180104,3199.6,3199.3,0.93393026]
[1768863146874,0.00180104,3199.6,3199.3,0.002]
[1768863147381,1.0014878,3199.6,3199.3,0.002]
[1768863149296,0.00180104,3199.6,3199.3,0.93393026]
[1768863149677,0.00180104,3199.6,3199.3,0.002]
[1768863150860,1.0014878,3199.6,3199.3,0.002]
[1768863152891,0.00180104,3199.6,3199.3,0.93393026]
[1768863153898,0.00180104,3199.6,3199.3,0.002]
[1768863155607,1.0014878,3199.6,3199.3,0.002]
[1768863156889,0.00180104,3199.6,3199.3,0.002]
[1768863158812,0.00180104,3199.6,3199.3,0.514]
[1768863159308,1.0014878,3199.6,3199.3,0.514]
[1768863159914,0.00180104,3199.6,3199.3,1.44593026]
[1768863162919,0.00180104,3199.6,3199.3,0.514]
[1768863166013,0.00180104,3199.6,3199.3,1.50254808]
[1768863167310,0.00080088,3199.9,3199.6,0.98854808]
[1768863169522,0.99165479,3199.9,3199.3,0.002]
[1768863171931,0.99165479,3199.9,3199.4,0.98854808]
[1768863173531,0.001,3199.6,3199.4,0.98854808]
[1768863174031,0.001,3199.6,3199.5,0.90299024]
[1768863174220,0.00080088,3199.9,3199.5,0.90299024]
[1768863176500,0.00080088,3199.9,3199.3,0.514]
[1768863176501,0.93496599,3199.9,3199.4,0.512]
[1768863179437,0.93416511,3199.8,3199.4,0.512]
[1768863179737,0.93416511,3199.8,3199.3,0.514]
[1768863180536,0.93416511,3199.7,3199.3,0.002]
[1768863181839,0.93416511,3199.6,3199.2,0.00080112]
[1768863182946,0.93416511,3199.6,3198.9,1e-08]
[1768863182947,0.93416511,3199.5,3198.9,1e-08]
[1768863183541,0.93416511,3199.3,3198.9,1e-08]
[1768863183741,1.65269883,3199.2,3198.9,1e-08]
[1768863184151,1.65269883,3199.2,3198.6,0.51480112]
[1768863184152,0.93416511,3199.1,3198.6,0.00280112]
[1768863187461,0.93416511,3199.0,3198.6,0.00280112]
[1768863190165,4.06016053,3199.0,3198.6,0.00280112]
[1768863190366,0.93416511,3199.0,3198.6,0.00280112]
[1768863190555,0.40600877,3198.9,3198.6,0.00280112]
[1768863197049,1.34017388,3198.9,3198.6,0.00280112]
[1768863197264,0.40600877,3198.9,3198.6,0.00280112]
[1768863197472,0.001,3198.8,3198.6,0.00280112]
[1768863203352,0.001,3198.8,3198.6,0.93157595]
[1768863203552,0.001,3198.8,3198.6,0.00280112]
[1768863207086,0.001,3198.8,3198.6,0.93157595]
[1768863207569,0.001,3198.8,3198.6,0.00280112]
[1768863207977,0.001,3198.8,3198.6,0.93157595]
[1768863209359,0.001,3198.8,3198.6,0.00280112]
[1768863210088,0.001,3198.8,3198.6,0.93157595]
[1768863210755,0.71853372,3199.2,3198.7,0.92877483]
[1768863210954,4.07478769,3199.3,3198.7,0.92877483]
[1768863211185,0.9482449,3199.2,3198.7,0.92877483]
[1768863214887,4.07402665,3199.2,3198.7,0.92877483]
[1768863215069,0.40748279,3199.1,3198.7,0.92877483]
[1768863215587,3.12652311,3199.3,3198.7,0.92877483]
[1768863215789,0.9482449,3199.2,3198.7,0.92877483]
[1768863216990,0.0008012,3199.3,3198.7,0.92877483]
[1768863221178,0.001,3199.0,3198.7,0.92877483]
[1768863232804,0.001,3198.8,3198.7,0.92877483]
[1768863235602,0.001,3199.0,3198.7,0.92877483]
[1768863245033,0.98493464,3199.0,3198.6,0.00280112]
[1768863245824,0.98493464,3199.0,3198.6,0.91787067]
[1768863246404,0.001,3199.0,3198.6,0.91787067]
[1768863251743,0.98393464,3198.9,3198.6,0.00280112]
[1768863252245,0.001,3199.0,3198.6,0.00280112]
[1768863252414,0.001,3199.0,3198.6,0.91787067]
[1768863257729,0.001,3199.0,3198.7,0.91506955]
[1768863265252,0.97138855,3199.0,3198.6,0.00280112]
[1768863265577,0.001,3199.0,3198.7,0.9750505]
[1768863270698,0.97138855,3199.0,3198.6,0.00280112]
[1768863272698,0.001,3199.0,3198.7,0.9750505]
[1768863292199,0.93788099,3199.0,3198.6,0.51480112]
[1768863292631,0.001,3199.0,3198.6,1.43733606]
[1768863292798,0.001,3199.0,3198.7,0.92253494]
[1768863295921,0.001,3199.0,3198.6,0.51480112]
[1768863296250,0.001,3199.0,3198.6,1.47971379]
[1768863296554,0.001,3199.0,3198.7,0.96491267]
[1768863298224,0.001,3199.0,3198.6,0.51480112]
[1768863298751,0.001,3199.0,3198.6,1.47971379]
[1768863300222,0.94161791,3199.0,3198.6,0.51480112]
[1768863306682,0.94161791,3199.0,3198.6,1.47971379]
[1768863306683,0.001,3199.0,3198.6,1.47971379]
[1768863306848,0.0008012,3199.3,3198.7,0.96491267]
[1768863307056,0.0008012,3199.3,3198.9,0.96491267]
[1768863307975,0.0008012,3199.3,3199.0,1.47691267]
[1768863309391,0.0008012,3199.3,3199.1,0.96491267]
[1768863313387,0.0008012,3199.3,3199.0,0.512]
[1768863313883,0.0008012,3199.3,3199.0,1.47691267]
[1768863315390,0.0008012,3199.3,3199.1,0.96491267]
[1768863319009,0.0008012,3199.3,3198.9,0.002]
[1768863319215,0.0008012,3199.3,3199.0,0.512]
[1768863319586,0.0008012,3199.3,3199.0,1.47691267]
[1768863319884,0.0008012,3199.3,3199.1,0.96491267]
[1768863320104,0.94141911,3199.3,3198.9,0.002]
[1768863324401,0.94141911,3199.3,3198.9,0.94914564]
[1768863325129,0.94141911,3199.3,3198.9,0.002]
[1768863325633,0.001,3199.0,3198.9,0.002]
[1768863335843,0.001,3199.0,3198.9,0.94914564]
[1768863336213,0.99678979,3199.3,3198.9,0.94914564]
[1768863337946,0.001,3199.0,3198.9,0.94914564]
[1768863338242,0.99678979,3199.3,3198.9,0.94914564]
[1768863338442,0.0008012,3199.3,3198.9,0.94914564]
[1768863350665,0.001,3199.0,3198.9,0.94914564]
[1768863350864,0.0008012,3199.3,3198.9,0.94914564]
[1768863355763,0.0008012,3199.3,3199.0,0.91208003]
[1768863379790,0.0008012,3199.3,3198.9,0.91408003]
[1768863386198,0.001,3199.0,3198.9,4.04015461]
[1768863386495,0.0008012,3199.3,3199.0,0.90085532]
[1768863391898,0.0008012,3199.3,3199.1,0.90085532]
[1768863411132,6.24960938,3200.2,3199.0,0.96447978]
[1768863411330,3.63680469,3200.2,3199.2,0.96528098]
[1768863411631,0.90732687,3199.9,3199.2,0.96528098]
[1768863412831,0.90732687,3199.9,3199.3,0.96447978]
[1768863413033,0.90732687,3199.9,3199.3,0.95397422]
[1768863413203,0.00080088,3199.9,3199.3,0.95397422]
[1768863413530,0.98604442,3199.9,3199.3,0.95397422]
[1768863414524,0.00080088,3199.9,3199.3,0.95397422]
[1768863414832,0.00080088,3199.9,3199.3,3.12560245]
[1768863415029,0.00080088,3199.9,3199.4,0.95397422]
[1768863416334,0.00080088,3199.9,3199.4,4.07954433]
[1768863416633,0.00080088,3199.9,3199.5,0.95397422]
[1768863418233,0.98524354,3199.8,3199.2,0.0008012]
[1768863418439,0.98524354,3199.8,3199.4,0.513]
[1768863420106,0.98524354,3199.8,3199.2,0.0008012]
[1768863420312,0.98524354,3199.8,3199.3,0.513]
[1768863421141,0.98524354,3199.8,3199.4,0.002]
[1768863421336,0.43624354,3199.6,3199.4,0.002]
[1768863421552,0.13437561,3199.6,3199.4,0.002]
[1768863422342,0.12118183,3199.6,3199.4,0.002]
[1768863423747,0.59242398,3199.8,3199.4,0.002]
[1768863432238,0.59242398,3199.8,3199.2,0.0008012]
[1768863432239,1.10442398,3199.8,3199.2,0.0008012]
[1768863432442,0.59042398,3199.7,3199.2,0.0008012]
[1768863433755,0.512,3199.8,3199.2,0.95477542]
[1768863433953,0.59042398,3199.7,3199.2,0.95477542]
[1768863436838,0.59042398,3199.8,3199.2,0.95477542]
[1768863441761,0.59042398,3199.7,3199.2,0.0008012]
[1768863442258,0.59042398,3199.6,3199.2,0.0008012]
[1768863444464,0.59042398,3199.6,3199.5,0.002]
[1768863446433,0.59042398,3199.5,3199.2,0.0008012]
[1768863446633,0.59042398,3199.3,3198.9,0.00280128]
[1768863446861,0.58762278,3199.1,3198.9,0.00280128]
[1768863449141,3.12592266,3199.1,3198.6,0.00280112]
[1768863449356,0.58762278,3199.0,3198.6,0.00280112]
[1768863449540,3.12592266,3199.1,3198.5,0.002]
[1768863449541,0.58762278,3198.8,3198.5,0.002]
[1768863449747,1.09782166,3198.7,3198.5,0.002]
[1768863451166,0.58482166,3198.6,3198.3,0.00280168]
[1768863457950,0.58482166,3198.6,3198.0,0.00280136]
[1768863457951,0.58482166,3198.5,3198.0,0.00280136]
[1768863458149,6.25275915,3198.6,3198.0,0.00280136]
[1768863458150,0.58482166,3198.3,3198.0,0.00280136]
[1768863458354,0.58482166,3198.1,3198.0,0.00280136]
[1768863458551,0.58482166,3198.1,3197.4,3.12749385]
[1768863458751,0.513,3198.2,3196.9,0.00080096]
[1768863458752,0.57321926,3197.6,3196.9,0.00080096]
[1768863459092,0.57241814,3197.4,3196.9,0.00080096]
[1768863459279,0.57241814,3197.3,3196.9,0.00080096]
[1768863459781,0.57241814,3197.2,3196.9,0.00080096]
[1768863459984,1.08541814,3197.1,3196.9,0.00080096]
[1768863461349,0.57241814,3197.0,3196.9,0.00080096]
[1768863462262,0.57241814,3197.0,3196.6,0.00080072]
[1768863463557,6.76867772,3197.1,3196.6,0.00080072]
[1768863463558,3.70044841,3196.9,3196.6,0.00080072]
[1768863463872,0.57241814,3196.7,3196.6,0.00080072]
[1768863464068,1.08541814,3196.7,3196.6,0.00080072]
[1768863464788,1.08541814,3196.7,3196.3,0.00080088]
[1768863464789,0.57241814,3196.6,3196.3,0.00080088]
[1768863466260,0.57241814,3196.6,3195.9,0.0008012]
[1768863466261,0.57241814,3196.3,3195.9,0.0008012]
[1768863466467,0.57241814,3196.1,3195.9,0.0008012]
[1768863467495,0.57241814,3196.1,3195.6,0.96910809]
[1768863468190,0.5716171,3195.9,3195.3,0.00080088]
[1768863468383,0.513,3195.8,3195.3,0.00080088]
[1768863468576,0.5716171,3195.7,3195.3,0.96910793]
[1768863468775,0.513,3195.6,3195.3,0.96910793]
[1768863468992,0.5716171,3195.5,3195.0,1.46423363]
[1768863469662,0.56881622,3195.3,3194.7,0.00080112]
[1768863469897,0.56881622,3195.1,3194.7,0.00080112]
[1768863470382,3.69867847,3195.1,3194.7,0.00080112]
[1768863471165,0.56881622,3195.0,3194.7,0.00080112]
[1768863472492,3.69872115,3195.0,3194.7,0.00080112]
[1768863472691,0.36987212,3194.9,3194.7,0.00080112]
[1768863472985,0.513,3194.8,3194.7,0.00080112]
[1768863474691,3.69872115,3195.0,3194.8,0.95943731]
[1768863474692,0.513,3195.0,3194.8,0.95943731]
[1768863477089,0.513,3195.0,3194.7,0.00080112]
[1768863478464,0.9476485,3194.9,3194.7,0.00080112]
[1768863478672,0.9476485,3194.9,3194.3,0.96023835]
[1768863479672,0.9476485,3194.9,3194.4,0.95943731]
[1768863481310,0.9476485,3194.9,3194.6,0.002]
[1768863481777,0.513,3195.0,3194.6,0.002]
[1768863481971,0.513,3195.0,3194.6,0.96143731]
[1768863481972,3.64289973,3195.0,3194.6,0.96143731]
[1768863482200,0.36437009,3194.9,3194.6,0.96143731]
[1768863482497,0.36437009,3194.9,3194.6,0.002]
[1768863483183,0.513,3194.8,3194.6,0.002]
[1768863484208,1.4606485,3194.8,3194.6,0.002]
[1768863488811,0.9476485,3194.7,3194.6,0.002]
[1768863489406,0.513,3194.8,3194.6,0.002]
[1768863489610,1.0085011,3194.8,3194.6,0.002]
[1768863489918,0.94844954,3194.7,3194.1,0.96023851]
[1768863491684,0.94844954,3194.7,3194.1,0.0008012]
[1768863491889,1.4606485,3194.6,3194.1,0.96023851]
[1768863492202,0.513,3194.5,3194.1,0.96023851]
[1768863492408,0.513,3194.4,3194.1,0.96023851]
[1768863492789,0.00080104,3194.7,3194.1,0.96023851]
[1768863492995,0.513,3194.4,3194.1,0.96023851]
[1768863493504,0.513,3194.6,3194.1,0.96023851]
[1768863497592,0.513,3194.6,3194.2,0.95943731]
[1768863499522,0.9476485,3194.5,3194.1,0.0008012]
[1768863499705,0.87739163,3194.6,3194.1,0.96023851]
[1768863500501,0.87739163,3194.6,3194.1,0.0008012]
[1768863500502,1.4606485,3194.5,3194.1,0.0008012]
[1768863501025,0.9476485,3194.4,3194.1,0.0008012]
[1768863501330,0.513,3194.5,3193.5,0.00280096]
[1768863501331,0.9476485,3193.7,3193.5,0.00280096]
[1768863501489,3.13108204,3193.8,3193.2,0.00080104]
[1768863501490,0.9476485,3193.5,3193.2,0.00080104]
[1768863503015,0.513,3193.6,3193.2,0.93786764]
[1768863503606,0.51380096,3193.9,3193.2,0.93786764]
[1768863503994,0.51380096,3193.9,3193.3,0.9370666]
[1768863504825,0.51380096,3193.9,3193.2,0.00080104]
[1768863504826,0.95437319,3193.8,3193.2,0.00080104]
[1768863505014,7.2356468,3193.9,3192.9,0.0008012]
[1768863505015,0.95437319,3193.5,3192.9,0.0008012]
[1768863505217,0.95437319,3193.5,3192.9,0.9378678]
[1768863505431,0.513,3193.5,3192.9,0.0008012]
[1768863505632,0.95437319,3193.4,3192.9,0.0008012]
[1768863506229,0.95437319,3193.2,3192.9,0.0008012]
[1768863506810,0.95437319,3193.2,3192.2,0.00280056]
[1768863507016,0.95437319,3193.2,3192.2,0.93986716]
[1768863507243,0.95437319,3193.2,3192.2,0.00280056]
[1768863507741,0.95437319,3193.1,3192.4,0.9370666]
[1768863508043,0.95437319,3193.1,3192.2,0.00280056]
[1768863508218,0.95437319,3193.1,3192.3,0.9370666]
[1768863508418,0.95437319,3192.9,3192.3,0.68786772]
[1768863508621,0.95437319,3192.9,3192.3,0.9370666]
[1768863508827,0.95437319,3192.9,3192.2,0.93986716]
[1768863509649,0.95437319,3192.9,3192.2,4.07250295]
[1768863510226,0.95437319,3192.9,3192.3,0.9370666]
[1768863511473,0.95437319,3192.8,3192.2,0.00280056]
[1768863511746,0.95437319,3192.7,3192.2,0.00280056]
[1768863513714,0.95437319,3192.6,3192.2,0.00280056]
[1768863516349,4.08662301,3192.6,3192.2,0.00280056]
[1768863516554,0.95437319,3192.4,3192.2,0.00280056]
[1768863521341,0.95437319,3192.4,3192.1,0.002]
[1768863522431,4.10140623,3192.6,3192.1,1.00169923]
[1768863522655,0.9683027,3192.5,3192.1,0.002]
[1768863523633,0.9683027,3192.4,3192.1,0.002]
[1768863525483,4.10076899,3192.4,3192.1,0.002]
[1768863525766,0.9683027,3192.4,3192.0,0.99969923]
[1768863527177,4.10074525,3192.4,3192.0,0.99969923]
[1768863527669,4.10074525,3192.4,3191.9,0.00080056]
[1768863527972,4.10074525,3192.4,3191.6,0.00080032]
[1768863527973,0.96910326,3192.3,3191.6,0.00080032]
[1768863529351,0.9683027,3192.1,3191.6,0.00080032]
[1768863529873,0.9683027,3192.1,3192.0,0.002]
[1768863530077,0.9683027,3192.0,3191.6,0.00080032]
[1768863534571,0.9683027,3192.0,3191.6,0.97672513]
[1768863535183,0.9683027,3192.0,3191.6,0.00080032]
[1768863535676,1.2694369,3191.9,3191.6,0.00080032]
[1768863535876,0.29234056,3191.8,3191.6,0.00080032]
[1768863536063,0.29234056,3191.7,3191.6,0.00080032]
[1768863536269,1.26943729,3191.7,3191.6,0.00080032]
[1768863537302,0.29234056,3191.7,3191.6,0.00080032]
[1768863537678,1.26943729,3191.7,3191.6,0.00080032]
[1768863537881,0.29234056,3191.7,3191.6,0.00080032]
[1768863538899,0.29234056,3191.7,3191.3,0.97672529]
[1768863539201,0.29234056,3191.6,3191.3,0.97672529]
[1768863539402,0.29234056,3191.5,3191.3,0.00080048]
[1768863539569,0.97709673,3191.7,3191.3,0.00080048]
[1768863539770,0.29241132,3191.6,3191.3,0.00080048]
[1768863540101,0.29241132,3191.5,3191.3,0.00080048]
[1768863540303,0.29250505,3191.4,3191.3,0.00080048]
[1768863541103,1.26960178,3191.4,3191.3,0.00080048]
[1768863541466,0.29250505,3191.4,3191.3,0.00080048]
[1768863542090,1.26960178,3191.4,3191.3,0.00080048]
[1768863542281,1.26960178,3191.4,3191.1,1.5137741]
[1768863542602,0.29250505,3191.3,3191.1,1.5137741]
[1768863542771,0.29250505,3191.2,3191.1,1.5137741]
[1768863543197,0.29250505,3191.2,3191.1,2.48969891]
[1768863543371,0.29250505,3191.2,3191.1,1.5137741]
[1768863543566,0.29250505,3191.2,3191.1,1e-08]
[1768863543998,0.2927048,3191.2,3191.1,1e-08]
[1768863544270,0.47108495,3191.2,3191.1,1e-08]
[1768863544470,0.47108495,3191.2,3191.0,0.00519009]
[1768863544812,0.2927048,3191.1,3191.0,0.9811149]
[1768863545277,0.2927048,3191.1,3190.9,0.002]
[1768863545496,0.2927048,3191.0,3190.9,0.97792481]
[1768863548306,0.2927048,3191.0,3190.9,0.002]
[1768863548909,0.2927048,3191.0,3190.9,0.97792481]
[1768863549500,0.2927048,3191.0,3190.9,0.002]
[1768863549797,1.26980153,3191.0,3190.9,0.002]
[1768863550109,1.26980153,3191.0,3190.7,0.002]
[1768863550412,0.2927048,3190.9,3190.7,0.002]
[1768863550580,0.97709673,3191.0,3190.7,0.002]
[1768863550775,0.29211789,3190.9,3190.7,0.002]
[1768863550974,0.514,3191.0,3190.7,0.002]
[1768863551192,0.29211667,3190.9,3190.4,0.24459525]
[1768863551389,1.49109673,3191.0,3190.4,0.24459525]
[1768863551682,0.29209171,3190.9,3190.4,0.24459525]
[1768863551903,1.49109673,3191.0,3190.4,0.24459525]
[1768863552111,1.26919388,3190.9,3190.4,0.24459525]
[1768863552286,1.26919388,3190.9,3190.3,0.002]
[1768863552287,0.97709673,3190.7,3190.3,0.24659525]
[1768863552611,0.514,3191.0,3190.3,0.24659525]
[1768863552817,0.29208435,3190.9,3190.3,0.24659525]
[1768863553115,0.29208435,3190.8,3190.3,0.24659525]
[1768863553316,1.49109673,3191.0,3190.3,0.24659525]
[1768863553317,0.29208435,3190.7,3190.3,0.24659525]
[1768863553479,0.97709673,3191.2,3190.3,0.24659525]
[1768863553688,0.04747852,3191.1,3190.5,5.89501122]
[1768863554008,0.00080032,3191.4,3190.3,0.516]
[1768863554210,0.97789705,3191.4,3190.4,5.89501122]
[1768863554393,0.97789705,3191.4,3190.5,6.26860992]
[1768863555325,0.97789705,3191.4,3190.4,6.2688064]
[1768863555909,0.97789705,3191.4,3190.3,6.41101122]
[1768863555910,0.97789705,3191.4,3190.3,0.002]
[1768863556111,0.97709673,3191.3,3190.3,3.13645531]
[1768863556427,0.97709673,3191.3,3190.4,0.31364553]
[1768863556604,0.97709673,3191.3,3190.3,0.002]
[1768863557420,0.97709673,3191.1,3190.3,0.002]
[1768863557605,0.97709673,3190.9,3190.3,0.002]
[1768863557794,0.97709673,3190.9,3189.7,0.514]
[1768863558690,0.97709673,3190.9,3189.6,3.13518501]
[1768863558894,0.97709673,3190.9,3189.4,5.89801122]
[1768863559092,0.97709673,3190.9,3189.5,0.514]
[1768863559292,0.97709673,3190.9,3190.0,5.89501122]
[1768863559497,0.97709673,3190.9,3190.0,9.02976012]
[1768863560220,0.97709673,3190.9,3190.0,12.67855635]
[1768863560586,0.97709673,3190.9,3190.0,9.54376012]
[1768863561621,0.97709673,3190.9,3189.7,5.89501122]
[1768863561799,0.97709673,3190.9,3189.7,6.40901122]
[1768863562196,0.97709673,3190.8,3189.6,5.89501122]
[1768863562406,0.97709673,3190.8,3189.6,6.40901122]
[1768863562589,0.97709673,3190.8,3189.6,5.89501122]
[1768863562789,0.97709673,3190.8,3189.7,0.514]
[1768863563512,0.97709673,3190.8,3189.6,6.40901122]
[1768863563892,0.95523706,3190.6,3189.7,3.13509107]
[1768863564094,0.95523706,3190.6,3189.6,9.03016255]
[1768863564287,0.95523706,3190.6,3189.6,3.13515133]
[1768863564492,0.95523706,3190.6,3189.5,3.13525124]
[1768863564789,0.95523706,3190.4,3189.5,3.13525124]
[1768863565120,0.95523706,3190.4,3190.3,0.002]
[1768863565687,1.24708795,3190.4,3190.3,0.002]
[1768863565888,1.24708795,3190.4,3189.4,0.003]
[1768863565889,0.95523706,3190.3,3189.4,0.007]
[1768863566223,0.514,3190.5,3189.4,0.007]
[1768863566224,0.95523706,3190.1,3189.4,0.007]
[1768863567125,0.95523706,3190.1,3189.4,0.003]
[1768863567326,3.1345205,3190.3,3188.9,0.004]
[1768863567327,0.95523706,3189.9,3188.9,0.004]
[1768863567528,0.80582299,3190.0,3188.8,3.13591874]
[1768863567529,0.95523706,3189.7,3188.8,3.13591874]
[1768863567821,0.95523706,3189.5,3188.7,0.006]
[1768863568049,0.95523706,3189.5,3189.1,0.0264724]
[1768863568227,0.514,3190.0,3189.2,0.004]
[1768863568228,0.95523706,3189.9,3189.2,0.004]
[1768863568392,0.95523706,3189.7,3189.1,0.0224724]
[1768863568591,0.95523706,3189.5,3189.1,0.0224724]
[1768863570944,0.95523706,3189.7,3189.1,0.0264724]
[1768863571136,0.95523706,3189.6,3189.1,0.0264724]
[1768863571325,1.67775932,3189.6,3189.1,0.0264724]
[1768863572823,0.95523706,3189.4,3189.1,0.0224724]
[1768863573030,0.95523706,3189.4,3188.7,0.002]
[1768863574142,0.95523706,3189.4,3188.7,0.0284724]
[1768863575657,0.95523706,3189.4,3188.7,0.002]
[1768863575658,0.95523706,3189.2,3188.7,0.002]
[1768863575824,0.80509465,3189.3,3188.3,1.36081925]
[1768863575825,0.95523706,3189.0,3188.3,1.36081925]
[1768863576346,0.17603317,3189.1,3187.7,5.89501122]
[1768863576347,0.95523706,3188.8,3187.7,5.89501122]
[1768863576524,0.17603317,3189.1,3187.3,1.5661157]
[1768863576525,0.95523706,3188.3,3187.3,1.5661157]
[1768863576848,0.0008,3188.4,3187.3,1.5661157]
[1768863576849,0.95523706,3188.1,3187.3,1.5661157]
[1768863577017,0.95523706,3187.9,3187.3,1.0560361]
[1768863577221,0.95523706,3187.7,3184.9,0.9829459]
[1768863577523,5.89501122,3187.1,3185.3,6.87795712]
[1768863577727,0.95523706,3186.9,3185.1,10.01756629]
[1768863577923,0.95523706,3186.6,3185.1,3.13960917]
[1768863578249,1.19902483,3187.0,3185.1,3.13960917]
[1768863578250,0.68502483,3187.0,3185.4,0.9829459]
[1768863578544,0.68502483,3187.0,3185.3,5.89501122]
[1768863578545,0.514,3187.1,3185.7,5.89501122]
[1768863578726,0.514,3187.1,3185.9,0.9829459]
[1768863578932,1.46923706,3187.1,3186.0,3.13873195]
[1768863579135,3.30117407,3187.3,3186.1,0.9829459]
[1768863579136,0.6776816,3187.3,3186.1,0.9829459]
[1768863579366,0.6776816,3187.3,3186.2,0.9829459]
[1768863579838,0.1636816,3187.3,3186.2,0.9829459]
[1768863580246,0.514,3187.5,3186.3,0.9017885]
[1768863580563,0.514,3187.5,3186.5,0.9017885]
[1768863580933,0.514,3187.5,3186.7,0.9017885]
[1768863581445,3.13648496,3188.3,3186.6,6.27628192]
[1768863581446,0.92688512,3188.3,3186.9,0.9017885]
[1768863581650,0.92768512,3188.4,3186.9,0.9017885]
[1768863582069,0.0008,3188.4,3186.9,0.9017885]
[1768863582268,0.92768512,3188.4,3186.9,0.9017885]
[1768863582577,0.92688512,3188.3,3186.9,0.9017885]
[1768863582762,0.92688512,3188.1,3186.9,0.9017885]
[1768863582965,0.92688512,3188.1,3187.0,1.4157885]
[1768863583362,0.92688512,3188.1,3187.0,0.514]